fUST/lending_fUST_20240819
["ID","MTS","AMOUNT","RATE_DAILY","PERIOD"]
[335237065,1724005854489,-151.0,0.00016712,2]
[335237066,1724005854498,-151.0,0.00016712,2]
[335237067,1724005854508,-151.0,0.00016712,2]
[335237068,1724005854517,-500.0,0.00016712,2]
[335237069,1724005854526,-500.0,0.00016712,2]
[335237070,1724005854536,-500.0,0.00016712,2]
[335237071,1724005854545,-500.0,0.00016712,2]
[335237072,1724005854554,-500.0,0.00016712,2]
[335237073,1724005854563,-500.0,0.00016712,2]
[335237074,1724005854572,-500.0,0.00016712,2]
[335237075,1724005854582,-379.085514,0.00016712,2]
[335237076,1724005854591,-379.085514,0.00016712,2]
[335237077,1724005854601,-379.085514,0.00016712,2]
[335237078,1724005854609,-379.085514,0.00016712,2]
[335237079,1724005854620,-500.0,0.00016712,2]
[335237080,1724005854629,-522.37444784,0.00016712,2]
[335237081,1724005854639,-379.085514,0.00016712,2]
[335237082,1724005854648,-379.085514,0.00016712,2]
[335237083,1724005854657,-379.085514,0.00016712,2]
[335237084,1724005854667,-379.085508,0.00016712,2]
[335237085,1724005854677,-500.0,0.00016712,2]
[335237086,1724005854686,-500.0,0.00016712,2]
[335237087,1724005854695,-200.0,0.00016712,2]
[335237088,1724005854705,-500.0,0.00016712,2]
[335237089,1724005854714,-649.0,0.00016712,2]
[335237090,1724005854724,-500.0,0.00016712,2]
[335237091,1724005854734,-500.0,0.00016712,2]
[335237092,1724005854743,-692.09,0.00016712,2]
[335237093,1724005854753,-514.17707633,0.00016712,2]
[335237094,1724005854762,-500.0,0.00016712,2]
[335237095,1724005854772,-500.0,0.00016712,2]
[335237096,1724005854784,-500.0,0.00016712,2]
[335237097,1724005854795,-500.0,0.00016712,2]
[335237098,1724005854804,-500.0,0.00016712,2]
[335237099,1724005854816,-461.50916637,0.00016712,2]
[335237100,1724005854827,-494.2044068,0.00016712,2]
[335237101,1724005854837,-500.0,0.00016712,2]
[335237102,1724005854847,-500.0,0.00016712,2]
[335237103,1724005854857,-434.24993688,0.00016712,2]
[335237104,1724005854867,-500.0,0.00016712,2]
[335237105,1724005854878,-500.0,0.00016712,2]
[335237106,1724005854888,-500.0,0.00016712,2]
[335237107,1724005854898,-500.0,0.00016712,2]
[335237108,1724005854908,-697.63,0.00016712,2]
[335237109,1724005854917,-500.0,0.00016712,2]
[335237110,1724005854928,-500.0,0.00016712,2]
[335237111,1724005854939,-500.0,0.00016712,2]
[335237112,1724005854950,-500.0,0.00016712,2]
[335237113,1724005854960,-1303.51,0.00016712,2]
[335237114,1724005854971,-505.48196032,0.00016712,2]
[335237115,1724005854983,-500.0,0.00016712,2]
[335237116,1724005854996,-500.0,0.00016712,2]
[335237117,1724005855007,-500.0,0.00016712,2]
[335237118,1724005855018,-682.7,0.00016712,2]
[335237119,1724005855028,-500.0,0.00016712,2]
[335237120,1724005855037,-168.93144031,0.00016712,2]
[335237121,1724005855047,-638.39,0.00016712,2]
[335237122,1724005855057,-500.0,0.00016712,2]
[335237123,1724005855067,-500.0,0.00016712,2]
[335237124,1724005855077,-500.0,0.00016712,2]
[335237125,1724005855087,-155.97998199,0.00016712,2]
[335237126,1724005855098,-500.0,0.00016712,2]
[335237127,1724005855110,-500.0,0.00016712,2]
[335237128,1724005855121,-500.0,0.00016712,2]
[335237129,1724005855130,-500.0,0.00016712,2]
[335237130,1724005855141,-500.0,0.00016712,2]
[335237131,1724005855154,-500.0,0.00016712,2]
[335237132,1724005855165,-574.24,0.00016712,2]
[335237133,1724005855176,-500.0,0.00016712,2]
[335237134,1724005855187,-500.0,0.00016712,2]
[335237135,1724005855198,-518.08165798,0.00016712,2]
[335237136,1724005855207,-505.6636181,0.00016712,2]
[335237137,1724005855216,-558.25,0.00016712,2]
[335237138,1724005855227,-500.0,0.00016712,2]
[335237139,1724005855236,-500.0,0.00016712,2]
[335237140,1724005855246,-500.0,0.00016712,2]
[335237141,1724005855256,-576.4,0.00016712,2]
[335237142,1724005855265,-740.77,0.00016712,2]
[335237143,1724005855275,-500.0,0.00016712,2]
[335237144,1724005855284,-500.0,0.00016712,2]
[335237145,1724005855293,-500.0,0.00016712,2]
[335237146,1724005855302,-500.0,0.00016712,2]
[335237147,1724005855311,-500.0,0.00016712,2]
[335237148,1724005855321,-500.0,0.00016712,2]
[335237149,1724005855330,-500.0,0.00016712,2]
[335237150,1724005855339,-500.0,0.00016712,2]
[335237151,1724005855349,-500.0,0.00016712,2]
[335237152,1724005855359,-500.0,0.00016712,2]
[335237153,1724005855369,-426.90354338,0.00016712,2]
[335237154,1724005855379,-500.0,0.00016712,2]
[335237155,1724005855389,-151.0,0.00016712,2]
[335237156,1724005855398,-183.82544,0.00016712,2]
[335237157,1724005855407,-500.0,0.00016712,2]
[335237158,1724005855416,-500.0,0.00016712,2]
[335237159,1724005855426,-1068.78,0.00016712,2]
[335237160,1724005855436,-500.0,0.00016712,2]
[335237161,1724005855445,-505.25967494,0.00016712,2]
[335237162,1724005855454,-151.0,0.00016712,2]
[335237163,1724005855464,-188.71131,0.00016712,2]
[335237164,1724005855472,-500.0,0.00016712,2]
[335237165,1724005855482,-500.0,0.00016712,2]
[335237166,1724005855491,-500.0,0.00016712,2]
[335237167,1724005855502,-500.0,0.00016712,2]
[335237168,1724005855513,-508.31419883,0.00016712,2]
[335237169,1724005855522,-500.0,0.00016712,2]
[335237170,1724005855532,-500.0,0.00016712,2]
[335237171,1724005855542,-500.0,0.00016712,2]
[335237172,1724005855553,-1072.02,0.00016712,2]
[335237173,1724005855563,-694.6,0.00016712,2]
[335237174,1724005855573,-500.0,0.00016712,2]
[335237175,1724005855585,-500.0,0.00016712,2]
[335237176,1724005855595,-500.0,0.00016712,2]
[335237177,1724005855605,-464.391783,0.00016712,2]
[335237178,1724005855616,-464.391783,0.00016712,2]
[335237179,1724005855625,-500.0,0.00016712,2]
[335237180,1724005855635,-464.391783,0.00016712,2]
[335237181,1724005855645,-464.391792,0.00016712,2]
[335237182,1724005855655,-678.73,0.00016712,2]
[335237183,1724005855666,-571.47,0.00016712,2]
[335237184,1724005855677,-500.0,0.00016712,2]
[335237185,1724005855688,-500.0,0.00016712,2]
[335237186,1724005855698,-500.0,0.00016712,2]
[335237187,1724005855708,-474.86221474,0.00016712,2]
[335237188,1724005855718,-500.0,0.00016712,2]
[335237189,1724005855728,-500.0,0.00016712,2]
[335237190,1724005855738,-500.0,0.00016712,2]
[335237191,1724005855749,-500.0,0.00016712,2]
[335237192,1724005855759,-500.0,0.00016712,2]
[335237193,1724005855769,-1102.01,0.00016712,2]
[335237194,1724005855780,-500.0,0.00016712,2]
[335237195,1724005855789,-500.0,0.00016712,2]
[335237196,1724005855800,-500.0,0.00016712,2]
[335237197,1724005855810,-500.0,0.00016712,2]
[335237198,1724005855820,-502.34132061,0.00016712,2]
[335237199,1724005855830,-500.0,0.00016712,2]
[335237200,1724005855841,-500.0,0.00016712,2]
[335237201,1724005855853,-500.0,0.00016712,2]
[335237202,1724005855866,-500.0,0.00016712,2]
[335237203,1724005855876,-500.0,0.00016712,2]
[335237204,1724005855885,-688.4,0.00016712,2]
[335237205,1724005855896,-500.0,0.00016712,2]
[335237206,1724005855906,-710.97,0.00016712,2]
[335237207,1724005855915,-500.0,0.00016712,2]
[335237208,1724005855925,-500.0,0.00016712,2]
[335237209,1724005855936,-500.0,0.00016712,2]
[335237210,1724005855945,-620.55,0.00016712,2]
[335237211,1724005855956,-539.21423371,0.00016712,2]
[335237212,1724005855966,-500.0,0.00016712,2]
[335237213,1724005855976,-500.0,0.00016712,2]
[335237214,1724005855987,-518.86573632,0.00016712,2]
[335237215,1724005855997,-500.0,0.00016712,2]
[335237216,1724005856007,-500.0,0.00016712,2]
[335237217,1724005856018,-500.0,0.00016712,2]
[335237218,1724005856029,-500.0,0.00016712,2]
[335237219,1724005856127,-500.0,0.00016712,2]
[335237220,1724005856138,-500.0,0.00016712,2]
[335237221,1724005856148,-500.0,0.00016712,2]
[335237222,1724005856162,-520.35,0.00016712,2]
[335237223,1724005856171,-725.37,0.00016712,2]
[335237224,1724005856182,-500.0,0.00016712,2]
[335237225,1724005856192,-510.80240199,0.00016712,2]
[335237226,1724005856203,-500.0,0.00016712,2]
[335237227,1724005856214,-500.0,0.00016712,2]
[335237228,1724005856224,-572.75,0.00016712,2]
[335237229,1724005856236,-505.61470572,0.00016712,2]
[335237230,1724005856246,-500.0,0.00016712,2]
[335237231,1724005856256,-500.0,0.00016712,2]
[335237232,1724005856265,-448.51956165,0.00016712,2]
[335237233,1724005856274,-227.66897349,0.00016712,2]
[335237234,1724005856285,-500.0,0.00016712,2]
[335237235,1724005856295,-500.0,0.00016712,2]
[335237236,1724005856306,-614.96400603,0.00016712,2]
[335237237,1724005856316,-500.0,0.00016712,2]
[335237238,1724005856326,-500.0,0.00016712,2]
[335237239,1724005856335,-500.0,0.00016712,2]
[335237240,1724005856344,-500.0,0.00016712,2]
[335237241,1724005856353,-500.0,0.00016712,2]
[335237242,1724005856363,-500.0,0.00016712,2]
[335237243,1724005856372,-505.91791522,0.00016712,2]
[335237244,1724005856382,-500.0,0.00016712,2]
[335237245,1724005856391,-500.0,0.00016712,2]
[335237246,1724005856402,-702.79,0.00016712,2]
[335237247,1724005856412,-509.09326815,0.00016712,2]
[335237248,1724005856421,-500.0,0.00016712,2]
[335237249,1724005856432,-500.0,0.00016712,2]
[335237250,1724005856442,-594.6,0.00016712,2]
[335237251,1724005856453,-500.0,0.00016712,2]
[335237252,1724005856463,-500.0,0.00016712,2]
[335237253,1724005856473,-500.0,0.00016712,2]
[335237254,1724005856483,-500.0,0.00016712,2]
[335237255,1724005856493,-940.02,0.00016712,2]
[335237256,1724005856502,-500.0,0.00016712,2]
[335237257,1724005856512,-587.16184139,0.00016712,2]
[335237258,1724005856523,-511.27237691,0.00016712,2]
[335237259,1724005856532,-1337.56,0.00016712,2]
[335237260,1724005856542,-967.362646,0.00016712,2]
[335237261,1724005856553,-967.362646,0.00016712,2]
[335237262,1724005856564,-500.0,0.00016712,2]
[335237263,1724005856576,-500.0,0.00016712,2]
[335237264,1724005856586,-967.362646,0.00016712,2]
[335237265,1724005856597,-967.362651,0.00016712,2]
[335237266,1724005856608,-562.7467592,0.00016712,2]
[335237267,1724005856619,-500.0,0.00016712,2]
[335237268,1724005856630,-500.0,0.00016712,2]
[335237269,1724005856640,-500.0,0.00016712,2]
[335237270,1724005856652,-906.0,0.00016712,2]
[335237271,1724005856661,-500.0,0.00016712,2]
[335237272,1724005856670,-501.88739602,0.00016712,2]
[335237273,1724005856680,-509.1367831,0.00016712,2]
[335237274,1724005856690,-500.0,0.00016712,2]
[335237275,1724005856700,-504.26190343,0.00016712,2]
[335237276,1724005856710,-594.54,0.00016712,2]
[335237277,1724005856721,-500.0,0.00016712,2]
[335237278,1724005856731,-506.50095845,0.00016712,2]
[335237279,1724005856741,-273.82097232,0.00016712,2]
[335237286,1724005993747,813.87566378,0.000168,30]
[335237316,1724006836148,-173.08641218,9.801e-05,2]
[335237317,1724006836171,-251.15764428,9.9e-05,2]
[335237318,1724006836193,-233.97,0.00010959,2]
[335237319,1724006836216,-194.97,0.00010959,2]
[335237320,1724006836242,-162.48,0.00010959,2]
[335237321,1724006836266,-812.42,0.00010959,2]
[335237322,1724006836289,-300.0,0.00012365,2]
[335237323,1724006836312,-300.0,0.00012365,2]
[335237324,1724006836336,-12990.41279964,0.00012366,2]
[335237327,1724006972136,-223.53309174,9.9e-05,2]
[335237336,1724007019713,309.3349299,9.9e-05,2]
[335237337,1724007020585,4063.91145063,9.9e-05,2]
[335237338,1724007027643,7269.19292269,9.9e-05,2]
[335237377,1724007033371,651.32310157,9.9e-05,2]
[335237406,1724007040121,-300.0,0.00012365,2]
[335237408,1724007040134,-11909.58720036,0.00012366,2]
[335237409,1724007040144,-2306.30134703,0.00012551,2]
[335237411,1724007040153,-1208.05596583,0.00012779,2]
[335237412,1724007040162,-188.22273,0.00012815,2]
[335237413,1724007040171,-156.93396105,0.00012898,2]
[335237414,1724007040181,-404.31033644,0.00012934,2]
[335237415,1724007040191,-520.42439304,0.00012934,2]
[335237416,1724007040201,-3228.3962601,0.00012951,2]
[335237417,1724007040212,-493.25192424,0.00012971,2]
[335237418,1724007040221,-543.73594479,0.00012999,2]
[335237419,1724007040232,-188.22273,0.00013038,2]
[335237420,1724007040243,-188.22273,0.0001326,2]
[335237421,1724007040254,-188.22273,0.00013483,2]
[335237422,1724007040263,-207.5283979,0.00013507,2]
[335237423,1724007040273,-154.69833824,0.00013596,2]
[335237424,1724007040282,-420.0,0.00013601,2]
[335237425,1724007040291,-203.433612,0.00013699,2]
[335237426,1724007040301,-175.35502738,0.00013699,2]
[335237427,1724007040311,-500.0,0.00013699,2]
[335237428,1724007040321,-500.0,0.00013943,2]
[335237429,1724007040330,-180.7743733,0.00014245,2]
[335237430,1724007040339,-154.71377951,0.00014245,2]
[335237431,1724007040348,-2760.49725694,0.00014245,2]
[335237432,1724007040358,-160.465003,0.00014247,2]
[335237433,1724007040367,-160.971937,0.00014247,2]
[335237434,1724007040376,-500.0,0.00014676,2]
[335237435,1724007040385,-387.897102,0.00014795,2]
[335237436,1724007040395,-153.0,0.00015288,2]
[335237437,1724007040405,-500.0,0.00015449,2]
[335237438,1724007040414,-3228.39626009,0.00016087,2]
[335237439,1724007040424,-153.0,0.0001611,2]
[335237440,1724007040435,-153.0,0.0001611,2]
[335237441,1724007040445,-153.0,0.0001611,2]
[335237442,1724007040455,-153.0,0.0001611,2]
[335237443,1724007040464,-153.0,0.0001611,2]
[335237444,1724007040474,-153.0,0.0001611,2]
[335237445,1724007040484,-153.0,0.0001611,2]
[335237446,1724007040493,-153.0,0.0001611,2]
[335237447,1724007040503,-153.0,0.0001611,2]
[335237448,1724007040512,-433.7848853,0.0001611,2]
[335237449,1724007040523,-153.0,0.0001611,2]
[335237450,1724007040532,-153.0,0.0001611,2]
[335237451,1724007040541,-153.0,0.0001611,2]
[335237452,1724007040551,-153.0,0.0001611,2]
[335237453,1724007040563,-153.0,0.0001611,2]
[335237454,1724007040577,-153.0,0.0001611,2]
[335237455,1724007040586,-5244.23039316,0.00016146,2]
[335237456,1724007040596,-1568.55011659,0.00016228,2]
[335237457,1724007040607,-2000.0,0.00016228,2]
[335237458,1724007040616,-1568.55011656,0.00016256,2]
[335237459,1724007040627,-500.0,0.00016262,2]
[335237460,1724007040637,-500.0,0.00016262,2]
[335237461,1724007040646,-1568.55011656,0.00016283,2]
[335237462,1724007040655,-500.0,0.00016307,2]
[335237463,1724007040664,-497.82043704,0.00016307,2]
[335237464,1724007040674,-513.90763794,0.00016307,2]
[335237465,1724007040683,-500.0,0.00016307,2]
[335237466,1724007040693,-500.0,0.00016307,2]
[335237467,1724007040702,-500.0,0.00016307,2]
[335237468,1724007040712,-500.0,0.00016307,2]
[335237469,1724007040721,-500.0,0.00016307,2]
[335237470,1724007040731,-532.4511552,0.00016307,2]
[335237471,1724007040740,-500.0,0.00016307,2]
[335237472,1724007040749,-500.0,0.00016307,2]
[335237473,1724007040759,-58443.04882593,0.00016308,2]
[335237474,1724007040848,-7571.17292345,0.00016308,2]
[335237488,1724007043792,-2772.87153913,0.00016308,2]
[335237589,1724007939120,-1601.18618339,9.9e-05,2]
[335237590,1724007939144,-160.465003,0.00014247,2]
[335237591,1724007939166,-160.971937,0.00014247,2]
[335237592,1724007939187,-1642.54115214,0.00014493,2]
[335237594,1724008030105,-252.42727498,0.00014245,2]
[335237595,1724008030128,-196.0,0.00014493,2]
[335237596,1724008030153,-23257.45884786,0.00014493,2]
[335237597,1724008030176,-330.1068973,0.00014519,2]
[335237598,1724008030198,-203.4336123,0.0001458,2]
[335237599,1724008030220,-368.502246,0.00014795,2]
[335237600,1724008030242,-2421.29719512,0.00015881,2]
[335237601,1724008030262,-153.0,0.00016,2]
[335237602,1724008030283,-295.0138388,0.00016,2]
[335237603,1724008030307,-5327.60651547,0.00016014,2]
[335237604,1724008030328,-150.0,0.00016091,2]
[335237605,1724008030350,-627.42004664,0.00016228,2]
[335237606,1724008030371,-2000.0,0.00016228,2]
[335237607,1724008030391,-3400.62334677,0.00016228,2]
[335237608,1724008030412,-627.42004662,0.00016256,2]
[335237609,1724008030433,-589.1675126,0.00016274,2]
[335237610,1724008030455,-627.42004662,0.00016283,2]
[335237611,1724008030477,-306.0,0.000163,2]
[335237612,1724008030498,-348.47430593,0.00016307,2]
[335237613,1724008030520,-500.0,0.00016307,2]
[335237614,1724008030541,-361.06455624,0.00016307,2]
[335237691,1724008238258,-247.12796354,0.00013971,2]
[335237692,1724008238267,-309.11885378,0.00014245,2]
[335237693,1724008238276,-292.98093876,0.00014245,2]
[335237694,1724008238285,-180.75332185,0.00014245,2]
[335237695,1724008238295,-160.465003,0.00014247,2]
[335237696,1724008238304,-272.38247463,0.00014519,2]
[335237697,1724008238313,-281.69200444,0.00015,2]
[335237698,1724008238323,-2960.19458325,0.00015047,2]
[335237721,1724008240432,-21939.80541675,0.00015047,2]
[335237722,1724008240442,-153.0,0.00016,2]
[335237723,1724008240452,-197.08111573,0.00016128,2]
[335237724,1724008240461,-197.08111571,0.00016133,2]
[335237725,1724008240471,-197.08111571,0.00016138,2]
[335237726,1724008240481,-2000.0,0.00016228,2]
[335237727,1724008240491,-295.0138388,0.00016274,2]
[335237728,1724008240500,-300.0,0.00016279,2]
[335237729,1724008240510,-300.0,0.00016279,2]
[335237730,1724008240520,-2642.57187003,0.0001628,2]
[335237731,1724008240530,-39000.0,0.000163,2]
[335237733,1724008240540,-295.0138388,0.000163,2]
[335237735,1724008240550,-153.0,0.000163,2]
[335237737,1724008240560,-243.93201415,0.00016327,2]
[335237739,1724008240569,-500.0,0.00016327,2]
[335237740,1724008240579,-274.13178832,0.00016327,2]
[335237741,1724008240591,-500.0,0.00016327,2]
[335237742,1724008240604,-500.0,0.00016327,2]
[335237743,1724008240613,-500.0,0.00016327,2]
[335237744,1724008240623,-500.0,0.00016327,2]
[335237745,1724008240632,-500.0,0.00016327,2]
[335237746,1724008240642,-83232.9983856,0.00016328,2]
[335237747,1724008240651,-88888.0,0.00016328,2]
[335237748,1724008240660,-40000.0,0.00016338,2]
[335237749,1724008240669,-155.0,0.0001638,2]
[335237750,1724008240679,-308.1266,0.000164,2]
[335237751,1724008240688,-150.112233,0.000164,2]
[335237752,1724008240698,-150.112233,0.000164,2]
[335237753,1724008240708,-295.0138388,0.000164,2]
[335237754,1724008240718,-102179.84330683,0.00016428,2]
[335237777,1724008243343,-6648.73462607,0.00016428,2]
[335237778,1724008243391,-2341.22212611,0.00016428,2]
[335237884,1724009154164,-160.41055449,0.00012991,2]
[335237885,1724009154186,-286.69938215,0.00012999,2]
[335237888,1724009245143,-1840.7005059,0.00012989,2]
[335237889,1724009245166,-280.12797765,0.00012999,2]
[335237890,1724009245188,-451.05634488,0.00013333,2]
[335237891,1724009245210,-192.13737859,0.00013333,2]
[335237931,1724009438304,-290.83616093,0.00013596,2]
[335237932,1724009438314,-24900.0,0.00013635,2]
[335237933,1724009438323,-371.10031626,0.00014,2]
[335237934,1724009438332,-329.62631289,0.00014245,2]
[335237935,1724009438342,-166.52155851,0.00014245,4]
[335237936,1724009438351,-160.971937,0.00014247,2]
[335237937,1724009438360,-160.465003,0.00014247,2]
[335237938,1724009438369,-190.740552,0.00014505,2]
[335237939,1724009438378,-190.740552,0.00014757,2]
[335237940,1724009438388,-350.077133,0.00014795,2]
[335237941,1724009438402,-4000.0,0.00015,15]
[335237942,1724009438411,-190.740552,0.00015009,2]
[335237943,1724009438421,-190.740552,0.00015261,2]
[335237944,1724009438430,-153.0,0.00015678,2]
[335237945,1724009438439,-153.0,0.00015778,2]
[335237946,1724009438449,-153.5165546,0.00015778,2]
[335237947,1724009438458,-207.3931713,0.00015778,2]
[335237948,1724009438467,-153.0,0.00015778,2]
[335237949,1724009438477,-2000.0,0.0001589,2]
[335237950,1724009438486,-250.96801868,0.000159,2]
[335237951,1724009438496,-295.0138388,0.00015945,2]
[335237952,1724009438505,-295.0138388,0.00015945,2]
[335237953,1724009438516,-295.0138388,0.00015945,2]
[335237954,1724009438525,-295.0138388,0.00015945,2]
[335237955,1724009438534,-170.7524099,0.00015979,2]
[335237956,1724009438543,-500.0,0.00015979,2]
[335237957,1724009438553,-500.0,0.00015979,2]
[335237958,1724009438562,-500.0,0.00015979,2]
[335237959,1724009438571,-500.0,0.00015979,2]
[335237960,1724009438581,-291.89225183,0.00015979,2]
[335237961,1724009438590,-147025.716927,0.0001598,2]
[335237962,1724009438602,-143423.78142501,0.0001599,2]
[335237977,1724009440834,-77114.79396499,0.0001599,2]
[335237978,1724009440843,-135532.03,0.00016,2]
[335237979,1724009440853,-4000.0,0.00016,16]
[335237980,1724009440863,-250.96801864,0.00016,2]
[335237981,1724009440873,-1009.21986791,0.00016,2]
[335237982,1724009440883,-5327.60651547,0.0001602,2]
[335237983,1724009440892,-250.96801864,0.000161,2]
[335237984,1724009440902,-207.5283979,0.0001611,2]
[335237985,1724009440911,-207.5283979,0.0001611,2]
[335237986,1724009440921,-207.5283979,0.0001611,2]
[335237987,1724009440930,-150.112233,0.000162,2]
[335237988,1724009440939,-154.786509,0.000162,2]
[335237989,1724009440949,-250.96801864,0.000162,2]
[335237990,1724009440959,-7087.65628836,0.00016218,2]
[335237991,1724009440978,-1032.90001892,0.00016218,2]
[335238007,1724009443406,-511.60414122,0.00016218,2]
[335238008,1724009443437,-4078.07923345,0.00016218,2]
[335238064,1724009446424,-365.55820643,0.00016161,2]
[335238065,1724009446434,-12190.9712928,0.00016218,2]
[335238071,1724009539739,-3000.0,0.000168,30]
[335238072,1724009539766,-3000.0,0.0001681,30]
[335238073,1724009539794,-3000.0,0.0001682,30]
[335238074,1724009539821,-3000.0,0.0001683,30]
[335238075,1724009539848,-3000.0,0.0001684,30]
[335238076,1724009539874,-4475.039042,0.0001685,30]
[335238077,1724009539980,-7946.77027249,0.00018,30]
[335238078,1724009540005,-155.0,0.00018,30]
[335238079,1724009540258,-155.19407555,0.0002,15]
[335238085,1724009592654,150.0,0.000168,30]
[335238136,1724010342123,-2572.70590495,0.00012779,2]
[335238168,1724010448099,-500.90807304,0.00013025,2]
[335238169,1724010448123,-300.0,0.00013973,2]
[335238170,1724010448144,-286.93414766,0.00013973,2]
[335238206,1724010570106,-2717.41410835,0.00013971,2]
[335238285,1724010640871,-24900.0,0.00013974,2]
[335238286,1724010640881,-192.96355,0.00014247,2]
[335238287,1724010640891,-330.1068973,0.00014519,2]
[335238288,1724010640901,-332.573276,0.00014795,2]
[335238289,1724010640911,-295.0138388,0.00015452,2]
[335238290,1724010640920,-295.0138388,0.00015452,2]
[335238291,1724010640930,-295.0138388,0.00015452,2]
[335238292,1724010640940,-295.0138388,0.000155,2]
[335238293,1724010640951,-295.0138388,0.000155,2]
[335238294,1724010640962,-295.0138388,0.000155,2]
[335238295,1724010640974,-295.0138388,0.000155,2]
[335238296,1724010640985,-295.0138388,0.00015678,2]
[335238297,1724010640996,-295.0138388,0.000157,2]
[335238298,1724010641007,-295.0138388,0.00015778,2]
[335238299,1724010641016,-295.0138388,0.00015778,2]
[335238300,1724010641027,-295.0138388,0.00015778,2]
[335238301,1724010641037,-295.0138388,0.00015778,2]
[335238302,1724010641048,-295.0138388,0.00015778,2]
[335238303,1724010641059,-295.0138388,0.00015778,2]
[335238304,1724010641070,-295.0138388,0.00015778,2]
[335238305,1724010641082,-295.0138388,0.00015778,2]
[335238306,1724010641092,-295.0138388,0.00015778,2]
[335238307,1724010641103,-295.0138388,0.00015781,2]
[335238308,1724010641115,-295.0138388,0.00015781,2]
[335238309,1724010641126,-953.29878775,0.00015788,2]
[335238310,1724010641135,-500.0,0.000158,7]
[335238311,1724010641147,-500.0,0.000158,7]
[335238312,1724010641157,-500.0,0.000158,7]
[335238313,1724010641166,-500.0,0.000158,7]
[335238314,1724010641176,-500.0,0.000158,7]
[335238315,1724010641186,-194.18,0.000158,7]
[335238316,1724010641195,-5327.60651547,0.00015931,2]
[335238317,1724010641204,-295.0138388,0.00015945,2]
[335238318,1724010641214,-295.0138388,0.00016,2]
[335238319,1724010641223,-295.0138388,0.00016,2]
[335238320,1724010641232,-298.37089832,0.00016071,2]
[335238321,1724010641242,-2000.0,0.00016088,2]
[335238322,1724010641251,-342.05242229,0.00016107,2]
[335238323,1724010641261,-500.0,0.00016107,2]
[335238324,1724010641392,-500.0,0.00016107,2]
[335238325,1724010641402,-500.0,0.00016107,2]
[335238326,1724010641412,-500.0,0.00016107,2]
[335238327,1724010641422,-500.0,0.00016107,2]
[335238328,1724010641431,-500.0,0.00016107,2]
[335238329,1724010641441,-500.0,0.00016107,2]
[335238330,1724010641451,-300.47175072,0.00016107,2]
[335238331,1724010641460,-300.0,0.00016107,2]
[335238332,1724010641470,-67913.9454462,0.00016108,2]
[335238333,1724010641480,-306.0,0.0001611,2]
[335238334,1724010641490,-71074.44531361,0.00016118,2]
[335238335,1724010641499,-782.46103051,0.00016146,2]
[335238336,1724010641509,-582.77032,0.00016188,2]
[335238337,1724010641519,-582.77032,0.00016188,2]
[335238338,1724010641528,-151.0,0.00016188,2]
[335238339,1724010641538,-151.0,0.00016188,2]
[335238340,1724010641547,-379.085514,0.00016188,2]
[335238341,1724010641557,-379.085514,0.00016188,2]
[335238342,1724010641567,-170.319748,0.00016188,2]
[335238343,1724010641576,-151.0,0.00016188,2]
[335238344,1724010641585,-1427.506133,0.00016188,2]
[335238345,1724010641595,-170.319748,0.00016188,2]
[335238346,1724010641604,-1427.506133,0.00016188,2]
[335238347,1724010641613,-1364.310846,0.00016188,2]
[335238348,1724010641622,-1364.310846,0.00016188,2]
[335238349,1724010641632,-827.095063,0.00016188,2]